[Event "ONJK 2024 ABC"]
[Site "Velp, Netherlands"]
[Date "2024.08.07"]
[Round "7.6"]
[White "Blok, Xaveer"]
[Black "Sapulette, Jay-Giani"]
[Result "1-0"]
[TimeControl "90 minutes + 30 seconds"]
[WhiteElo "1885"]
[BlackElo "1746"]

1. e4 {[%clk 01:30:56]} {[%emt 00:00:03]} e5 {[%clk 01:30:58]} {[%emt
00:00:03]} 2. Nf3 {[%clk 01:31:21]} {[%emt 00:00:05]} Nc6 {[%clk 01:31:25]}
{[%emt 00:00:03]} 3. d4 {[%clk 01:31:45]} {[%emt 00:00:06]} exd4 {[%clk
01:31:46]} {[%emt 00:00:09]} 4. Nxd4 {[%clk 01:32:09]} {[%emt 00:00:06]} Bc5
{[%clk 01:32:04]} {[%emt 00:00:12]} 5. Be3 {[%clk 01:32:33]} {[%emt 00:00:07]}
Qf6 {[%clk 01:32:25]} {[%emt 00:00:08]} 6. c3 {[%clk 01:32:54]} {[%emt
00:00:09]} d6 {[%clk 01:32:24]} {[%emt 00:00:30]} 7. Bc4 {[%clk 01:32:19]}
{[%emt 00:01:06]} Ne5 {[%clk 01:31:53]} {[%emt 00:01:01]} 8. Be2 {[%clk
01:32:26]} {[%emt 00:00:23]} Qg6 {[%clk 01:31:29]} {[%emt 00:00:55]} 9. O-O
{[%clk 01:30:47]} {[%emt 00:02:08]} Nf6 {[%clk 01:29:12]} {[%emt 00:02:47]} 10.
f3 {[%clk 01:29:03]} {[%emt 00:02:14]} d5 {[%clk 01:28:53]} {[%emt 00:00:49]}
11. exd5 {[%clk 01:24:20]} {[%emt 00:05:12]} Bh3 {[%clk 01:28:10]} {[%emt
00:01:14]} 12. Rf2 {[%clk 01:21:22]} {[%emt 00:03:28]} Nxd5 {[%clk 01:24:08]}
{[%emt 00:04:33]} 13. Qc1 {[%clk 01:21:10]} {[%emt 00:00:42]} O-O-O {[%clk
01:21:09]} {[%emt 00:03:29]} 14. f4 {[%clk 01:16:53]} {[%emt 00:04:46]} Nxe3
{[%clk 01:16:46]} {[%emt 00:04:54]} 15. Qxe3 {[%clk 01:16:42]} {[%emt
00:00:40]} Nc6 {[%clk 01:16:54]} {[%emt 00:00:23]} 16. Qxh3+ {[%clk 01:16:58]}
{[%emt 00:00:14]} Kb8 {[%clk 01:15:50]} {[%emt 00:01:34]} 17. Bh5 {[%clk
01:07:13]} {[%emt 00:10:14]} Nxd4 {[%clk 01:00:49]} {[%emt 00:15:32]} 18. Bxg6
{[%clk 01:05:27]} {[%emt 00:02:16]} hxg6 {[%clk 00:57:04]} {[%emt 00:04:15]} 19.
cxd4 {[%clk 01:02:18]} {[%emt 00:03:38]} Rxh3 {[%clk 00:57:29]} {[%emt
00:00:05]} 20. dxc5 {[%clk 01:02:17]} {[%emt 00:00:31]} Rd1+ {[%clk 00:57:45]}
{[%emt 00:00:14]} 21. Rf1 {[%clk 01:02:41]} {[%emt 00:00:06]} Rxf1+ {[%clk
00:58:12]} {[%emt 00:00:03]} 22. Kxf1 {[%clk 01:02:54]} {[%emt 00:00:17]} Rxh2
{[%clk 00:58:40]} {[%emt 00:00:02]} 23. Kg1 {[%clk 01:02:54]} {[%emt 00:00:30]}
Rh5 {[%clk 00:58:11]} {[%emt 00:00:59]} 24. b4 {[%clk 01:02:47]} {[%emt
00:00:37]} Rh4 {[%clk 00:57:42]} {[%emt 00:00:59]} 25. g3 {[%clk 01:02:53]}
{[%emt 00:00:24]} Rg4 {[%clk 00:58:02]} {[%emt 00:00:11]} 26. Kf2 {[%clk
01:02:53]} {[%emt 00:00:30]} g5 {[%clk 00:58:29]} {[%emt 00:00:03]} 27. Kf3
{[%clk 01:03:04]} {[%emt 00:00:19]} f5 {[%clk 00:58:57]} {[%emt 00:00:02]} 28.
Nc3 {[%clk 01:02:44]} {[%emt 00:00:50]} gxf4 {[%clk 00:59:23]} {[%emt
00:00:04]} 29. gxf4 {[%clk 01:02:16]} {[%emt 00:00:57]} c6 {[%clk 00:59:37]}
{[%emt 00:00:17]} 30. Rh1 {[%clk 01:01:18]} {[%emt 00:01:28]} g5 {[%clk
00:59:20]} {[%emt 00:00:48]} 31. fxg5 {[%clk 01:00:57]} {[%emt 00:00:51]} Rxg5
{[%clk 00:59:47]} {[%emt 00:00:03]} 32. a3 {[%clk 01:01:02]} {[%emt 00:00:25]}
Rg4 {[%clk 01:00:03]} {[%emt 00:00:13]} 33. Rh5 {[%clk 01:00:48]} {[%emt
00:00:43]} Rg1 {[%clk 00:59:39]} {[%emt 00:00:55]} 34. a4 {[%clk 00:54:30]}
{[%emt 00:06:49]} Rc1 {[%clk 00:59:59]} {[%emt 00:00:10]} 35. Ne2 {[%clk
00:53:03]} {[%emt 00:01:56]} Rf1+ {[%clk 00:59:28]} {[%emt 00:01:02]} 36. Ke3
{[%clk 00:53:10]} {[%emt 00:00:22]} Rb1 {[%clk 00:58:05]} {[%emt 00:01:54]} 37.
Rh4 {[%clk 00:52:56]} {[%emt 00:00:42]} Rb3+ {[%clk 00:57:00]} {[%emt
00:01:37]} 38. Kd2 {[%clk 00:53:17]} {[%emt 00:00:08]} Rb2+ {[%clk 00:57:18]}
{[%emt 00:00:12]} 39. Kd3 {[%clk 00:53:37]} {[%emt 00:00:11]} a5 {[%clk
00:56:40]} {[%emt 00:01:09]} 40. bxa5 {[%clk 00:51:31]} {[%emt 00:02:36]} Ka7
{[%clk 00:56:51]} {[%emt 00:00:19]} 41. Nd4 {[%clk 00:47:25]} {[%emt 00:04:35]}
Ka6 {[%clk 00:53:55]} {[%emt 00:03:28]} 42. Nxf5 {[%clk 00:44:06]} {[%emt
00:03:48]} Kxa5 {[%clk 00:54:02]} {[%emt 00:00:23]} 43. Nd6 {[%clk 00:44:29]}
{[%emt 00:00:07]} Ka6 {[%clk 00:54:06]} {[%emt 00:00:27]} 44. Kc3 {[%clk
00:44:30]} {[%emt 00:00:28]} Rg2 {[%clk 00:53:30]} {[%emt 00:01:06]} 45. Rb4
{[%clk 00:44:06]} {[%emt 00:00:54]} Rg3+ {[%clk 00:53:37]} {[%emt 00:00:23]} 46.
Kc4 {[%clk 00:43:38]} {[%emt 00:00:57]} Rg4+ {[%clk 00:53:59]} {[%emt
00:00:09]} 47. Kb3 {[%clk 00:43:49]} {[%emt 00:00:18]} Rg3+ {[%clk 00:54:23]}
{[%emt 00:00:06]} 48. Ka2 {[%clk 00:39:14]} {[%emt 00:05:04]} Rg2+ {[%clk
00:52:45]} {[%emt 00:02:10]} 49. Ka3 {[%clk 00:38:39]} {[%emt 00:01:05]} Rg3+
{[%clk 00:52:47]} {[%emt 00:00:28]} 50. Rb3 {[%clk 00:38:42]} {[%emt 00:00:26]}
Rg7 {[%clk 00:53:08]} {[%emt 00:00:09]} 51. Rb6+ {[%clk 00:36:36]} {[%emt
00:02:36]} Ka7 {[%clk 00:53:35]} {[%emt 00:00:04]} 52. Kb4 {[%clk 00:36:13]}
{[%emt 00:00:53]} Rh7 {[%clk 00:53:22]} {[%emt 00:00:43]} 53. Kc3 {[%clk
00:16:40]} {[%emt 00:20:03]} Ka8 {[%clk 00:53:15]} {[%emt 00:00:37]} 54. Nxb7
{[%clk 00:15:40]} {[%emt 00:01:30]} Rh3+ {[%clk 00:52:03]} {[%emt 00:01:41]} 55.
Kb4 {[%clk 00:15:53]} {[%emt 00:00:17]} Rh4+ {[%clk 00:52:13]} {[%emt
00:00:21]} 56. Ka5 {[%clk 00:16:13]} {[%emt 00:00:09]} Rh6 {[%clk 00:52:38]}
{[%emt 00:00:05]} 57. Nd8 {[%clk 00:16:09]} {[%emt 00:00:33]} Rh4 {[%clk
00:52:47]} {[%emt 00:00:21]} 58. Nxc6 {[%clk 00:16:27]} {[%emt 00:00:12]} Rxa4+
{[%clk 00:52:55]} {[%emt 00:00:23]} 59. Kb5 {[%clk 00:16:46]} {[%emt 00:00:11]}
1-0

[Event "ONJK 2024 ABC"]
[Site "Velp, Netherlands"]
[Date "2024.08.07"]
[Round "7.7"]
[White "Frederiks, Jesse"]
[Black "Madularea, David"]
[Result "1/2-1/2"]
[TimeControl "90 minutes + 30 seconds"]
[WhiteElo "1757"]
[BlackElo "2190"]

1. e4 {[%clk 01:30:57]} {[%emt 00:00:02]} c5 {[%clk 01:30:38]} {[%emt
00:00:23]} 2. Nf3 {[%clk 01:31:20]} {[%emt 00:00:06]} d6 {[%clk 01:30:41]}
{[%emt 00:00:29]} 3. d4 {[%clk 01:31:43]} {[%emt 00:00:06]} cxd4 {[%clk
01:31:08]} {[%emt 00:00:03]} 4. Nxd4 {[%clk 01:32:06]} {[%emt 00:00:07]} Nf6
{[%clk 01:31:35]} {[%emt 00:00:03]} 5. Nc3 {[%clk 01:32:30]} {[%emt 00:00:06]}
g6 {[%clk 01:32:00]} {[%emt 00:00:06]} 6. f3 {[%clk 01:31:51]} {[%emt
00:01:09]} Nbd7 {[%clk 01:32:24]} {[%emt 00:00:06]} 7. Be3 {[%clk 01:31:51]}
{[%emt 00:00:30]} h5 {[%clk 01:32:48]} {[%emt 00:00:06]} 8. Qd2 {[%clk
01:31:18]} {[%emt 00:01:03]} a6 {[%clk 01:33:12]} {[%emt 00:00:07]} 9. Be2
{[%clk 01:29:50]} {[%emt 00:01:58]} Bg7 {[%clk 01:32:45]} {[%emt 00:00:56]} 10.
O-O {[%clk 01:29:05]} {[%emt 00:01:15]} O-O {[%clk 01:33:10]} {[%emt 00:00:04]}
11. Rfd1 {[%clk 01:20:07]} {[%emt 00:09:28]} Re8 {[%clk 01:32:45]} {[%emt
00:00:56]} 12. a4 {[%clk 01:19:41]} {[%emt 00:00:56]} Qc7 {[%clk 01:26:05]}
{[%emt 00:07:10]} 13. Nb3 {[%clk 01:17:42]} {[%emt 00:02:29]} Ne5 {[%clk
01:25:05]} {[%emt 00:01:29]} 14. a5 {[%clk 01:16:15]} {[%emt 00:01:58]} Nc4
{[%clk 01:24:22]} {[%emt 00:01:13]} 15. Bxc4 {[%clk 01:16:21]} {[%emt
00:00:25]} Qxc4 {[%emt 00:05:38]} 16. Na4 {[%clk 01:11:14]} Nd7 {[%clk
01:24:53]} {[%emt 00:00:27]} 17. Bd4 {[%clk 01:05:26]} {[%emt 00:06:18]} Bxd4+
{[%clk 01:20:24]} 18. Nxd4 {[%clk 01:05:18]} {[%emt 00:05:36]} Rb8 {[%clk
01:19:23]} {[%emt 00:01:31]} 19. Qc3 {[%clk 00:37:14]} {[%emt 00:28:34]} Qxc3
{[%clk 01:18:42]} {[%emt 00:01:11]} 20. Nxc3 {[%clk 00:37:42]} {[%emt
00:00:02]} b6 {[%clk 01:18:30]} {[%emt 00:00:43]} 21. axb6 {[%clk 00:37:40]}
{[%emt 00:00:32]} Rxb6 {[%clk 01:14:01]} {[%emt 00:04:59]} 22. b3 {[%clk
00:37:24]} {[%emt 00:00:46]} Nf6 {[%clk 01:11:59]} {[%emt 00:02:32]} 23. Nd5
{[%clk 00:31:00]} {[%emt 00:06:55]} Nxd5 {[%clk 01:12:16]} {[%emt 00:00:13]} 24.
exd5 {[%clk 00:31:28]} {[%emt 00:00:02]} Bb7 {[%clk 01:12:17]} {[%emt
00:00:29]} 25. c4 {[%clk 00:29:52]} {[%emt 00:02:06]} e5 {[%clk 01:12:42]}
{[%emt 00:00:05]} 26. dxe6 {[%clk 00:30:16]} {[%emt 00:00:06]} fxe6 {[%clk
01:13:08]} {[%emt 00:00:03]} 27. Rab1 {[%clk 00:20:04]} {[%emt 00:10:42]} Bc8
{[%clk 01:01:07]} {[%emt 00:12:32]} 28. Ne2 {[%clk 00:17:57]} {[%emt 00:02:36]}
Kf7 {[%clk 00:57:53]} {[%emt 00:03:45]} 29. Nc3 {[%clk 00:16:50]} {[%emt
00:01:36]} Ke7 {[%clk 00:55:56]} {[%emt 00:02:28]} 30. Kf2 {[%clk 00:14:12]}
{[%emt 00:03:08]} Bd7 {[%clk 00:52:20]} {[%emt 00:04:06]} 31. Ne4 {[%clk
00:13:07]} {[%emt 00:01:35]} Reb8 {[%clk 00:48:11]} {[%emt 00:04:38]} 32. c5
{[%clk 00:10:14]} {[%emt 00:03:24]} dxc5 {[%clk 00:48:28]} {[%emt 00:00:13]} 33.
Nxc5 {[%clk 00:10:42]} {[%emt 00:00:02]} Bc6 {[%clk 00:48:37]} {[%emt
00:00:22]} 34. Ra1 {[%clk 00:07:43]} {[%emt 00:03:28]} Ra8 {[%clk 00:47:15]}
{[%emt 00:01:51]} 35. Ra5 {[%clk 00:06:04]} {[%emt 00:02:09]} Bb5 {[%clk
00:43:04]} {[%emt 00:04:41]} 36. Rda1 {[%clk 00:06:14]} {[%emt 00:00:20]} Kd6
{[%clk 00:42:27]} {[%emt 00:01:07]} 37. Ne4+ {[%clk 00:06:35]} {[%emt
00:00:10]} Ke7 {[%clk 00:41:17]} {[%emt 00:01:40]} 38. Nc5 {[%clk 00:06:53]}
{[%emt 00:00:12]} h4 {[%clk 00:41:39]} {[%emt 00:00:08]} 39. g3 {[%clk
00:06:08]} {[%emt 00:01:15]} g5 {[%clk 00:30:40]} {[%emt 00:11:28]} 40. gxh4
{[%clk 00:04:29]} {[%emt 00:02:10]} gxh4 {[%clk 00:31:04]} {[%emt 00:00:06]} 41.
Ke3 {[%clk 00:04:20]} {[%emt 00:00:38]} h3 {[%clk 00:30:39]} {[%emt 00:00:55]}
42. Rg1 {[%clk 00:04:08]} {[%emt 00:00:42]} Rc8 {[%clk 00:29:02]} {[%emt
00:02:07]} 43. Ne4 {[%clk 00:04:08]} {[%emt 00:00:30]} Rbc6 {[%clk 00:28:57]}
{[%emt 00:00:35]} 44. Rg7+ {[%clk 00:04:05]} {[%emt 00:00:32]} Kf8 {[%clk
00:29:07]} {[%emt 00:00:21]} 45. Rh7 {[%clk 00:04:22]} {[%emt 00:00:11]} Bf1
{[%clk 00:29:32]} {[%emt 00:00:07]} 46. Rah5 {[%clk 00:03:55]} {[%emt
00:00:57]} R6c7 {[%clk 00:28:35]} {[%emt 00:01:28]} 47. Rh8+ {[%clk 00:03:52]}
{[%emt 00:00:33]} Kg7 {[%clk 00:29:02]} {[%emt 00:00:03]} 48. R8h7+ {[%clk
00:03:46]} {[%emt 00:00:33]} Kf8 {[%clk 00:29:28]} {[%emt 00:00:07]} 49. Rh8+
{[%clk 00:04:03]} {[%emt 00:00:12]} Kg7 {[%clk 00:29:54]} {[%emt 00:00:04]} 50.
R8h7+ {[%clk 00:04:26]} {[%emt 00:00:07]} 1/2-1/2

[Event "ONJK 2024 ABC"]
[Site "Velp, Netherlands"]
[Date "2024.08.07"]
[Round "7.8"]
[White "Hagen, Carlijn"]
[Black "Kool, Jesper"]
[Result "0-1"]
[TimeControl "90 minutes + 30 seconds"]
[WhiteElo "1645"]
[BlackElo "1823"]

1. d4 {[%clk 01:30:58]} {[%emt 00:00:02]} d5 {[%clk 01:30:55]} {[%emt
00:00:06]} 2. Bf4 {[%clk 01:31:23]} {[%emt 00:00:04]} e6 {[%clk 01:31:21]}
{[%emt 00:00:03]} 3. e3 {[%clk 01:31:49]} {[%emt 00:00:05]} c5 {[%clk
01:31:49]} {[%emt 00:00:03]} 4. c3 {[%clk 01:32:13]} {[%emt 00:00:06]} Nc6
{[%clk 01:32:13]} {[%emt 00:00:05]} 5. Nf3 {[%clk 01:32:34]} {[%emt 00:00:08]}
Bd6 {[%clk 01:32:15]} {[%emt 00:00:28]} 6. Bg3 {[%clk 01:32:58]} {[%emt
00:00:07]} Nge7 {[%clk 01:32:27]} {[%emt 00:00:17]} 7. Bd3 {[%clk 01:33:19]}
{[%emt 00:00:09]} c4 {[%clk 01:32:39]} {[%emt 00:00:19]} 8. Bc2 {[%clk
01:33:30]} {[%emt 00:00:19]} O-O {[%clk 01:32:51]} {[%emt 00:00:17]} 9. Nbd2
{[%clk 01:33:56]} {[%emt 00:00:05]} b5 {[%clk 01:32:01]} {[%emt 00:01:20]} 10.
a3 {[%clk 01:33:31]} {[%emt 00:00:55]} Ng6 {[%clk 01:31:15]} {[%emt 00:01:15]}
11. Bxd6 {[%clk 01:30:18]} {[%emt 00:03:43]} Qxd6 {[%clk 01:31:30]} {[%emt
00:00:14]} 12. h4 {[%clk 01:30:21]} {[%emt 00:00:29]} e5 {[%clk 01:29:01]}
{[%emt 00:02:59]} 13. h5 {[%clk 01:29:59]} {[%emt 00:00:52]} Nge7 {[%clk
01:29:04]} {[%emt 00:00:27]} 14. Ng5 {[%clk 01:26:39]} {[%emt 00:03:50]} e4
{[%clk 01:27:15]} {[%emt 00:02:18]} 15. h6 {[%clk 01:11:24]} {[%emt 00:15:46]}
g6 {[%clk 01:23:21]} {[%emt 00:04:24]} 16. Qe2 {[%clk 00:58:30]} {[%emt
00:13:25]} f5 {[%clk 01:20:35]} {[%emt 00:03:15]} 17. O-O-O {[%clk 00:52:44]}
{[%emt 00:06:16]} a5 {[%clk 01:20:22]} {[%emt 00:00:44]} 18. Nb1 {[%clk
00:39:36]} {[%emt 00:13:37]} b4 {[%clk 01:18:39]} {[%emt 00:02:14]} 19. cxb4
{[%clk 00:39:40]} {[%emt 00:00:26]} axb4 {[%clk 01:18:22]} {[%emt 00:00:46]} 20.
axb4 {[%clk 00:39:29]} {[%emt 00:00:41]} Nxb4 {[%clk 01:17:18]} {[%emt
00:01:35]} 21. Na3 {[%clk 00:39:16]} {[%emt 00:00:43]} Na2+ {[%clk 01:16:46]}
{[%emt 00:01:02]} 22. Kb1 {[%clk 00:38:28]} {[%emt 00:01:17]} Rxa3 {[%clk
01:15:34]} {[%emt 00:01:42]} 23. Qe1 {[%clk 00:38:20]} {[%emt 00:00:38]} Ra8
{[%clk 01:14:14]} {[%emt 00:01:50]} 24. f3 {[%clk 00:35:57]} {[%emt 00:02:54]}
Qb4 {[%clk 01:13:32]} {[%emt 00:01:12]} 25. Qxb4 {[%clk 00:36:01]} {[%emt
00:00:26]} Nxb4 {[%clk 01:13:51]} {[%emt 00:00:10]} 26. fxe4 {[%clk 00:36:13]}
{[%emt 00:00:19]} dxe4 {[%clk 01:13:59]} {[%emt 00:00:22]} 27. Rhe1 {[%clk
00:36:08]} {[%emt 00:00:34]} Bd7 {[%clk 01:13:50]} {[%emt 00:00:39]} 28. Rc1
{[%clk 00:35:49]} {[%emt 00:00:49]} Ra7 {[%clk 01:13:35]} {[%emt 00:00:45]} 29.
Re2 {[%clk 00:34:48]} {[%emt 00:01:32]} Rfa8 {[%clk 01:13:41]} {[%emt
00:00:24]} 30. b3 {[%clk 00:34:51]} {[%emt 00:00:27]} c3 {[%clk 01:13:55]}
{[%emt 00:00:16]} 31. Bxe4 {[%clk 00:35:02]} {[%emt 00:00:18]} Ra1# {[%clk
01:14:14]} {[%emt 00:00:11]} 0-1

[Event "ONJK 2024 ABC"]
[Site "Velp, Netherlands"]
[Date "2024.08.07"]
[Round "7.9"]
[White "Musabayev, Maxim"]
[Black "Zhezheria, Maksym"]
[Result "1-0"]
[TimeControl "90 minutes + 30 seconds"]
[WhiteElo "1824"]
[BlackElo "1626"]

1. e4 {[%clk 01:30:58]} {[%emt 00:00:01]} e6 {[%clk 01:30:54]} {[%emt
00:00:07]} 2. d4 {[%clk 01:31:16]} {[%emt 00:00:12]} d5 {[%clk 01:31:15]}
{[%emt 00:00:08]} 3. exd5 {[%clk 01:31:40]} {[%emt 00:00:06]} exd5 {[%clk
01:31:42]} {[%emt 00:00:04]} 4. Bd3 {[%clk 01:32:05]} {[%emt 00:00:05]} c6
{[%clk 01:32:01]} {[%emt 00:00:11]} 5. Nf3 {[%clk 01:32:29]} {[%emt 00:00:05]}
Bg4 {[%clk 01:32:25]} {[%emt 00:00:07]} 6. h3 {[%clk 01:32:33]} {[%emt
00:00:26]} Bxf3 {[%clk 01:32:20]} {[%emt 00:00:35]} 7. Qxf3 {[%clk 01:32:53]}
{[%emt 00:00:10]} Be7 {[%clk 01:30:33]} {[%emt 00:02:17]} 8. O-O {[%clk
01:32:59]} {[%emt 00:00:24]} Nf6 {[%clk 01:30:45]} {[%emt 00:00:18]} 9. Qg3
{[%clk 01:31:07]} {[%emt 00:02:21]} g6 {[%clk 01:28:32]} {[%emt 00:02:43]} 10.
Bh6 {[%clk 01:29:48]} {[%emt 00:01:49]} Nbd7 {[%clk 01:28:45]} {[%emt
00:00:18]} 11. Re1 {[%clk 01:30:03]} {[%emt 00:00:15]} Nf8 {[%clk 01:19:12]}
{[%emt 00:10:02]} 12. Qe3 {[%clk 01:15:43]} {[%emt 00:14:50]} Ne6 {[%clk
01:16:13]} {[%emt 00:03:29]} 13. f4 {[%clk 01:11:55]} {[%emt 00:04:19]} Qd6
{[%clk 01:16:27]} {[%emt 00:00:16]} 14. f5 {[%clk 01:11:13]} {[%emt 00:01:11]}
gxf5 {[%clk 01:11:51]} {[%emt 00:05:07]} 15. Bxf5 {[%clk 01:11:21]} {[%emt
00:00:21]} Kd7 {[%clk 01:05:18]} {[%emt 00:07:04]} 16. Bf4 {[%clk 01:08:15]}
{[%emt 00:03:36]} Qb4 {[%clk 01:00:29]} {[%emt 00:05:19]} 17. Bxe6+ {[%clk
01:08:33]} {[%emt 00:00:11]} fxe6 {[%clk 01:00:43]} {[%emt 00:00:16]} 18. Qxe6+
{[%clk 01:09:00]} {[%emt 00:00:04]} Kd8 {[%clk 01:00:16]} {[%emt 00:00:57]} 19.
c3 {[%clk 01:09:19]} {[%emt 00:00:11]} Qb6 {[%clk 00:56:25]} {[%emt 00:04:21]}
20. Qxe7+ {[%clk 01:09:41]} {[%emt 00:00:08]} Kc8 {[%clk 00:56:50]} {[%emt
00:00:05]} 21. Qxf6 {[%clk 01:09:59]} {[%emt 00:00:12]} 1-0

[Event "ONJK 2024 ABC"]
[Site "Velp, Netherlands"]
[Date "2024.08.07"]
[Round "7.10"]
[White "Van Groning, Christian"]
[Black "Henckens, Elof"]
[Result "1/2-1/2"]
[TimeControl "90 minutes + 30 seconds"]
[WhiteElo "1778"]
[BlackElo "1707"]

1. e4 {[%clk 01:30:58]} {[%emt 00:00:01]} e5 {[%clk 01:30:49]} {[%emt
00:00:11]} 2. Nf3 {[%clk 01:31:23]} {[%emt 00:00:05]} Nf6 {[%clk 01:31:14]}
{[%emt 00:00:05]} 3. Nc3 {[%clk 01:31:35]} {[%emt 00:00:18]} Bb4 {[%clk
01:31:37]} {[%emt 00:00:07]} 4. Bc4 {[%clk 01:31:42]} {[%emt 00:00:23]} Bxc3
{[%clk 01:31:50]} {[%emt 00:00:17]} 5. bxc3 {[%clk 01:32:02]} {[%emt 00:00:10]}
d6 {[%clk 01:30:10]} {[%emt 00:02:10]} 6. d3 {[%clk 01:32:16]} {[%emt
00:00:16]} O-O {[%clk 01:16:21]} {[%emt 00:14:18]} 7. h3 {[%clk 01:31:49]}
{[%emt 00:00:57]} h6 {[%clk 01:03:06]} {[%emt 00:13:46]} 8. O-O {[%clk
01:31:10]} {[%emt 00:01:08]} Re8 {[%clk 01:01:51]} {[%emt 00:01:45]} 9. Re1
{[%clk 01:31:04]} {[%emt 00:00:37]} Nbd7 {[%clk 00:56:10]} {[%emt 00:06:11]} 10.
Bb3 {[%clk 01:28:18]} {[%emt 00:03:16]} Nf8 {[%clk 00:50:53]} {[%emt 00:05:48]}
11. Be3 {[%clk 01:18:56]} {[%emt 00:09:51]} Ng6 {[%clk 00:49:52]} {[%emt
00:01:30]} 12. Qd2 {[%clk 01:17:39]} {[%emt 00:01:47]} Qe7 {[%clk 00:48:23]}
{[%emt 00:01:59]} 13. Kh2 {[%clk 01:14:30]} {[%emt 00:03:39]} Bd7 {[%clk
00:41:02]} {[%emt 00:07:51]} 14. Rad1 {[%clk 01:02:34]} {[%emt 00:12:27]} Rad8
{[%clk 00:36:48]} {[%emt 00:04:43]} 1/2-1/2

[Event "ONJK 2024 ABC"]
[Site "Velp, Netherlands"]
[Date "2024.08.07"]
[Round "7.11"]
[White "Janssen, Thijn"]
[Black "De Rycke, Killian"]
[Result "1/2-1/2"]
[TimeControl "90 minutes + 30 seconds"]
[WhiteElo "1465"]
[BlackElo "1751"]

1. e4 {[%clk 01:30:58]} {[%emt 00:00:02]} e6 {[%clk 01:30:43]} {[%emt
00:00:18]} 2. d4 {[%clk 01:31:25]} {[%emt 00:00:01]} d5 {[%clk 01:31:09]}
{[%emt 00:00:05]} 3. exd5 {[%clk 01:31:51]} {[%emt 00:00:04]} exd5 {[%clk
01:31:33]} {[%emt 00:00:07]} 4. Nf3 {[%clk 01:32:06]} {[%emt 00:00:14]} Bd6
{[%clk 01:31:38]} {[%emt 00:00:25]} 5. Bd3 {[%clk 01:32:35]} {[%emt 00:00:02]}
Ne7 {[%clk 01:30:37]} {[%emt 00:01:30]} 6. O-O {[%clk 01:32:47]} {[%emt
00:00:18]} O-O {[%clk 01:29:49]} {[%emt 00:01:18]} 7. Re1 {[%clk 01:33:05]}
{[%emt 00:00:13]} Bf5 {[%clk 01:27:56]} {[%emt 00:02:23]} 8. Bg5 {[%clk
01:32:48]} {[%emt 00:00:47]} Bxd3 {[%clk 01:26:11]} {[%emt 00:02:14]} 9. Qxd3
{[%clk 01:33:16]} {[%emt 00:00:02]} h6 {[%clk 01:23:31]} {[%emt 00:03:09]} 10.
Bh4 {[%clk 01:32:56]} {[%emt 00:00:50]} c6 {[%clk 01:22:16]} {[%emt 00:01:47]}
11. c4 {[%clk 01:32:24]} {[%emt 00:01:02]} dxc4 {[%clk 01:19:52]} {[%emt
00:02:54]} 12. Qxc4 {[%clk 01:32:09]} {[%emt 00:00:44]} Qc7 {[%clk 01:19:47]}
{[%emt 00:00:35]} 13. Nbd2 {[%clk 01:31:32]} {[%emt 00:01:07]} Nf5 {[%clk
01:18:59]} {[%emt 00:01:17]} 14. Bg3 {[%clk 01:31:33]} {[%emt 00:00:31]} Nxg3
{[%clk 01:18:10]} {[%emt 00:01:18]} 15. hxg3 {[%clk 01:30:56]} {[%emt
00:01:07]} Nd7 {[%clk 01:16:23]} {[%emt 00:02:17]} 16. Ne4 {[%clk 01:30:11]}
{[%emt 00:01:15]} Nb6 {[%clk 01:14:38]} {[%emt 00:02:15]} 17. Qb3 {[%clk
01:30:06]} {[%emt 00:00:35]} Rfe8 {[%clk 01:12:06]} {[%emt 00:03:02]} 18. Re2
{[%clk 01:29:27]} {[%emt 00:01:09]} Re7 {[%clk 01:09:41]} {[%emt 00:02:54]} 19.
Rae1 {[%clk 01:28:58]} {[%emt 00:01:00]} Rae8 {[%clk 00:43:54]} {[%emt
00:26:17]} 20. Nh4 {[%clk 01:29:26]} {[%emt 00:00:02]} Qd7 {[%clk 00:42:22]}
{[%emt 00:02:02]} 21. Kf1 {[%clk 01:24:49]} {[%emt 00:05:07]} Bb8 {[%clk
00:32:34]} {[%emt 00:10:18]} 22. Nc5 {[%clk 01:21:52]} {[%emt 00:03:26]} Rxe2
{[%clk 00:23:14]} {[%emt 00:09:51]} 23. Rxe2 {[%clk 01:22:20]} {[%emt
00:00:01]} Qc8 {[%clk 00:23:00]} {[%emt 00:00:44]} 24. Rxe8+ {[%clk 01:22:00]}
{[%emt 00:00:51]} Qxe8 {[%clk 00:23:25]} {[%emt 00:00:06]} 25. Nxb7 {[%clk
01:22:25]} {[%emt 00:00:05]} Qe4 {[%clk 00:10:59]} {[%emt 00:12:56]} 26. Na5
{[%clk 01:21:20]} {[%emt 00:01:34]} Bd6 {[%clk 00:04:55]} {[%emt 00:06:34]} 27.
Nf3 {[%clk 01:18:57]} {[%emt 00:02:54]} Qb1+ {[%clk 00:05:15]} {[%emt
00:00:10]} 28. Ke2 {[%clk 01:19:09]} {[%emt 00:00:18]} Nd5 {[%clk 00:04:05]}
{[%emt 00:01:39]} 29. Nxc6 {[%clk 01:17:27]} {[%emt 00:02:13]} Qe4+ {[%clk
00:04:24]} {[%emt 00:00:11]} 30. Kd2 {[%clk 01:16:58]} {[%emt 00:00:58]} Nf4
{[%clk 00:03:39]} {[%emt 00:01:15]} 31. gxf4 {[%clk 01:16:34]} {[%emt
00:00:54]} Bxf4+ {[%clk 00:03:59]} {[%emt 00:00:11]} 32. Kc3 {[%clk 01:15:33]}
{[%emt 00:01:31]} Qxc6+ {[%clk 00:04:22]} {[%emt 00:00:07]} 33. Qc4 {[%clk
01:15:51]} {[%emt 00:00:12]} Qg6 {[%clk 00:03:53]} {[%emt 00:00:57]} 34. Nh4
{[%clk 01:14:24]} {[%emt 00:01:58]} Qd6 {[%clk 00:02:31]} {[%emt 00:01:53]} 35.
Qc8+ {[%clk 01:10:42]} {[%emt 00:04:12]} Kh7 {[%clk 00:02:55]} {[%emt
00:00:06]} 36. Qf5+ {[%clk 01:11:05]} {[%emt 00:00:07]} Kg8 {[%clk 00:03:16]}
{[%emt 00:00:08]} 37. g3 {[%clk 01:11:19]} {[%emt 00:00:16]} Bg5 {[%clk
00:03:10]} {[%emt 00:00:36]} 38. Nf3 {[%clk 01:11:27]} {[%emt 00:00:22]} Qc6+
{[%clk 00:03:29]} {[%emt 00:00:12]} 39. Kd3 {[%clk 01:11:29]} {[%emt 00:00:28]}
Qa6+ {[%clk 00:03:44]} {[%emt 00:00:15]} 40. Ke4 {[%clk 01:11:01]} {[%emt
00:00:58]} Qe2+ {[%clk 00:02:55]} {[%emt 00:01:19]} 41. Kd5 {[%clk 01:11:01]}
{[%emt 00:00:30]} Qb5+ {[%clk 00:01:50]} {[%emt 00:01:36]} 42. Ke4 {[%clk
01:11:22]} {[%emt 00:00:09]} Qe2+ {[%clk 00:01:14]} {[%emt 00:01:05]} 43. Kd5
{[%clk 01:11:45]} {[%emt 00:00:07]} Qb5+ {[%clk 00:00:53]} {[%emt 00:00:52]}
1/2-1/2